bitfinex-derivatives/quotes_SOLF0:USTF0_20250311
["timestamp","ask_amount","ask_price","bid_price","bid_amount"]
[1741702560682,27.01295838,122.28,122.17,27.01295838]
[1741702561076,27.01295838,122.29,122.17,27.01295838]
[1741702561277,12.4807,122.3,122.19,27.01295838]
[1741702561482,0.05892988,122.24,122.22,0.05679998]
[1741702561783,27.01295838,122.28,122.18,1.63692912]
[1741702561987,0.0573281,122.24,122.22,0.05290941]
[1741702564284,0.0573281,122.24,122.18,1.63692912]
[1741702564485,27.01295838,122.23,122.18,1.63692912]
[1741702564684,27.01295838,122.21,122.1,27.01295838]
[1741702565389,27.01295838,122.19,122.06,27.13445838]
[1741702565590,27.07064256,122.17,122.06,93.21445838]
[1741702565790,8.192,122.11,122.07,89.76262412]
[1741702566088,27.01295838,122.11,122.07,89.76262412]
[1741702566286,8.1931,122.09,122.06,132.40357769]
[1741702566591,27.01295838,122.09,122.06,127.13702385]
[1741702566786,0.05998551,122.09,122.06,127.19523567]
[1741702567885,8.1943,122.07,122.06,120.58283567]
[1741702568089,0.05998551,122.09,122.06,120.58283567]
[1741702568681,0.05998551,122.09,122.06,0.05821182]
[1741702568884,0.05998551,122.09,121.96,70.4643]
[1741702569187,4.1118,122.1,122.01,27.01295838]
[1741702569481,66.08,122.15,122.03,27.01295838]
[1741702569681,66.08,122.15,122.05,27.01295838]
[1741702569888,66.08,122.15,122.07,27.01295838]
[1741702570086,27.01295838,122.19,122.09,0.05727176]
[1741702570592,66.06,122.2,122.09,27.01295838]
[1741702571386,0.05901138,122.16,122.13,0.05528898]
[1741702571582,8.1922,122.11,122.05,8.1954]
[1741702571785,27.01295838,122.11,122.04,4.3843]
[1741702572085,27.01295838,122.09,122.0,4.0073]
[1741702572290,93.07295838,122.09,122.0,4.0073]
[1741702572489,27.01295838,122.11,122.0,4.0073]
[1741702572685,66.06,122.12,122.05,8.195]
[1741702572890,66.06,122.12,122.03,0.05862778]
[1741702572891,0.06236601,122.06,122.03,0.05862778]
[1741702573190,0.05912258,122.06,122.05,8.1952]
[1741702573387,0.05912258,122.06,122.03,0.0534642]
[1741702574181,0.05912258,122.06,122.04,8.1958]
[1741702574586,0.05912258,122.06,122.03,0.0534642]
[1741702575886,0.05912258,122.06,122.05,8.1956]
[1741702576086,2.258e-05,122.06,122.05,8.1956]
[1741702576292,2.258e-05,122.06,122.05,35.20855838]
[1741702576990,2.258e-05,122.06,122.05,8.1956]
[1741702577189,2.258e-05,122.06,122.03,0.0534642]
[1741702577385,8.19532258,122.06,122.03,0.0534642]
[1741702577589,8.19532258,122.06,121.95,31.30675838]
[1741702577590,27.01298096,122.06,121.95,31.30675838]
[1741702577890,27.01295838,122.02,121.91,27.01295838]
[1741702578091,4.2276,122.01,121.92,1.49524865]
[1741702578299,4.2276,122.01,121.9,70.0727]
[1741702578493,8.2005,121.98,121.9,4.0527]
[1741702578694,4.2276,122.01,121.9,4.0527]
[1741702578992,0.06277884,121.95,121.93,0.05790554]
[1741702579182,4.2276,122.01,121.93,0.05790554]
[1741702579388,0.06249065,121.95,121.9,4.0527]
[1741702579587,0.06249065,121.95,121.85,27.01295838]
[1741702579787,27.01295838,121.94,121.91,0.05782655]
[1741702579993,31.24055838,121.94,121.83,301.28565838]
[1741702580194,31.29471296,121.94,121.83,4.0527]
[1741702580400,27.01295838,121.92,121.83,4.0527]
[1741702580599,39.44405838,121.94,121.83,4.0527]
[1741702580802,31.24055838,121.94,121.83,4.0527]
[1741702580999,31.24055838,121.94,121.87,8.2072]
[1741702581199,0.06128878,121.9,121.87,0.05895193]
[1741702582800,66.0,121.97,121.88,27.01295838]
[1741702582995,12.4608,122.0,121.9,27.01295838]
[1741702583201,12.4608,122.0,121.92,27.01295838]
[1741702583407,39.47375838,122.0,121.88,27.01295838]
[1741702583897,47.67285838,122.0,121.88,27.01295838]
[1741702584098,0.0596874,121.95,121.94,8.203]
[1741702584493,12.4608,122.0,121.92,27.01295838]
[1741702584700,8.36e-05,121.96,121.94,27.01295838]
[1741702584895,66.02,122.06,121.95,66.0]
[1741702585202,66.02,122.06,122.0,8.1988]
[1741702585500,66.02,122.06,121.95,93.01295838]
[1741702586205,0.05978446,122.02,121.99,0.05921219]
[1741702586802,0.05978446,122.02,122.01,8.1983]
[1741702587405,0.05978446,122.02,121.99,0.05921219]
[1741702588107,2.51978446,122.02,121.99,0.05921219]
[1741702588304,2.51978446,122.02,121.93,4.1686]
[1741702588506,8.1985,122.01,121.93,4.1686]
[1741702588707,4.2894,122.02,121.93,4.1686]
[1741702588908,4.2894,122.02,121.91,92.99295838]
[1741702589208,31.30115838,122.01,121.91,92.99295838]
[1741702589401,0.053648,121.98,121.95,0.05988704]
[1741702591205,0.053648,121.98,121.89,35.34195838]
[1741702591206,27.01295838,121.97,121.9,8.2056]
[1741702591405,27.01295838,121.97,121.86,27.01295838]
[1741702591603,27.01295838,121.97,121.84,97.06665838]
[1741702591804,27.01295838,121.97,121.85,1.49626566]
[1741702592107,27.01295838,121.97,121.86,27.01295838]
[1741702592509,0.05944526,121.93,121.9,0.05390731]
[1741702593006,27.01295838,121.97,121.9,0.05620259]
[1741702593211,0.05441264,121.93,121.9,0.05620259]
[1741702593512,92.97295838,121.99,121.86,27.01295838]
[1741702593709,0.05852088,121.93,121.9,0.05600623]
[1741702594106,27.01295838,121.97,121.86,27.01295838]
[1741702594406,0.05497033,121.93,121.9,0.05722271]
[1741702596005,27.06792871,121.93,121.84,4.0937]
[1741702596205,27.01295838,121.93,121.84,4.0937]
[1741702596403,31.28975838,121.93,121.84,4.0937]
[1741702596603,31.28975838,121.93,121.8,27.01295838]
[1741702596807,31.28975838,121.93,121.8,92.93295838]
[1741702597004,31.28975838,121.93,121.8,27.01295838]
[1741702597211,0.05198039,121.88,121.85,0.05940234]
[1741702597413,0.05198039,121.88,121.8,27.01295838]
[1741702597613,27.01295838,121.91,121.85,0.06261348]
[1741702597811,27.01295838,121.91,121.8,27.01295838]
[1741702598006,0.05949761,121.89,121.87,0.05396487]
[1741702598214,8.2091,121.85,121.81,8.2114]
[1741702598409,92.91295838,121.89,121.79,4.3452]
[1741702598613,27.01295838,121.87,121.74,27.01295838]
[1741702598811,27.01295838,121.85,121.78,8.2134]
[1741702599014,8.4286,121.84,121.74,31.12465838]
[1741702599210,74.3486,121.84,121.74,4.1117]
[1741702599410,0.05474573,121.8,121.78,0.041934]
[1741702600220,0.05474573,121.8,121.7,92.91295838]
[1741702600415,0.05474573,121.8,121.7,27.01295838]
[1741702600615,27.01295838,121.81,121.7,27.01295838]
[1741702601017,8.2142,121.78,121.73,8.2167]
[1741702601220,65.9,121.79,121.7,27.01295838]
[1741702601419,430.17473353,121.84,121.72,27.01295838]
[1741702601420,0.05353346,121.77,121.72,27.01295838]
[1741702601614,0.05353346,121.77,121.7,27.01295838]
[1741702601811,0.05353346,121.77,121.72,27.01295838]
[1741702602015,92.93295838,121.83,121.72,27.01295838]
[1741702602315,0.05631163,121.76,121.7,27.01295838]
[1741702602512,92.93295838,121.83,121.75,8.2154]
[1741702603021,0.05881152,121.8,121.74,27.01295838]
[1741702603216,65.92,121.83,121.69,70.0117]
[1741702603519,0.05916142,121.78,121.73,27.01295838]
[1741702603820,0.05916142,121.78,121.77,8.2145]
[1741702604018,8.4286,121.84,121.75,27.01295838]
[1741702604221,421.84613353,121.89,121.77,27.01295838]
[1741702604222,65.88,121.88,121.77,27.01295838]
[1741702604420,70.1065,121.88,121.77,27.01295838]
[1741702604816,8.2101,121.84,121.8,8.2122]
[1741702605018,27.01295838,121.85,121.75,35.31865838]
[1741702605218,0.06164763,121.83,121.81,0.05817507]
[1741702605524,97.11945838,121.88,121.81,0.05817507]
[1741702605726,0.06237507,121.83,121.81,0.05817507]
[1741702606023,97.11945838,121.88,121.81,0.05817507]
[1741702606218,0.05608652,121.83,121.81,0.05817507]
[1741702606423,97.11945838,121.88,121.81,0.05817507]
[1741702606624,0.05376086,121.83,121.81,0.05817507]
[1741702606822,70.1065,121.88,121.81,0.05817507]
[1741702607022,70.1065,121.88,121.85,8.2085]
[1741702607223,4.443e-05,121.83,121.81,27.07113345]
[1741702607414,8.2082,121.87,121.79,92.87295838]
[1741702607819,65.88,121.88,121.79,92.87295838]
[1741702608017,27.01295838,121.8,121.68,191.0]
[1741702608218,336.68,121.79,121.64,27.01295838]
[1741702608415,0.05362494,121.75,121.73,0.05473432]
[1741702608822,0.05362494,121.75,121.7,27.01295838]
[1741702609019,0.05362494,121.75,121.73,0.05971265]
[1741702609433,27.01295838,121.78,121.69,4.2126]
[1741702609627,0.05471852,121.75,121.73,0.05953724]
[1741702611423,8.27101852,121.75,121.73,0.05953724]
[1741702611929,0.05471852,121.75,121.73,0.05953724]
[1741702615129,8.27091852,121.75,121.73,0.05953724]
[1741702615323,0.05471852,121.75,121.73,0.05953724]
[1741702615523,0.05471852,121.75,121.65,39.62465838]
[1741702615524,8.2189,121.71,121.65,20.8339]
[1741702615724,27.01295838,121.74,121.65,12.6117]
[1741702616031,27.01295838,121.74,121.65,8.5503]
[1741702616224,27.01295838,121.72,121.6,27.01295838]
[1741702616434,27.01295838,121.72,121.61,5.83229135]
[1741702616622,0.05240928,121.67,121.65,0.0591936]
[1741702617132,0.05933713,121.67,121.65,0.0591936]
[1741702617728,8.2219,121.66,121.65,0.0591936]
[1741702618528,0.05933713,121.67,121.65,0.0591936]
[1741702622824,8.2171,121.74,121.68,8.2202]
[1741702623024,12.8601,121.78,121.68,27.01295838]
[1741702623230,39.87305838,121.78,121.69,4.1404]
[1741702623429,27.01295838,121.76,121.69,4.1404]
[1741702623727,27.01295838,121.74,121.63,27.01295838]
[1741702623927,8.2189,121.71,121.63,4.1404]
[1741702624232,0.05401236,121.7,121.67,0.05358569]
[1741702626633,12.8601,121.78,121.69,27.01295838]
[1741702626829,27.01295838,121.77,121.68,65.74]
[1741702627030,27.01295838,121.75,121.63,31.15335838]
[1741702627226,27.01295838,121.73,121.63,31.15335838]
[1741702627632,0.06091336,121.69,121.67,0.05907484]
[1741702629338,0.06091336,121.69,121.67,8.28017484]
[1741702629533,27.01295838,121.68,121.55,271.14]
[1741702629731,27.01295838,121.68,121.57,5.57051944]
[1741702629931,8.2221,121.66,121.58,1.49951944]
[1741702630236,27.01295838,121.66,121.57,4.071]
[1741702630429,27.01295838,121.66,121.5,336.96789715]
[1741702630430,27.01295838,121.64,121.51,92.73295838]
[1741702630635,27.01295838,121.62,121.52,1.50024941]
[1741702630844,0.0612957,121.59,121.56,0.05816571]
[1741702631644,12.4585957,121.59,121.56,0.05816571]
[1741702631850,27.01295838,121.58,121.56,0.05816571]
[1741702632043,27.01295838,121.58,121.52,8.2312]
[1741702632248,27.01295838,121.58,121.48,97.4102298]
[1741702632844,27.01295838,121.58,121.48,4.3782]
[1741702633142,8.2284,121.57,121.5,8.2327]
[1741702633347,0.0535287,121.54,121.52,0.05591473]
[1741702633546,92.76648708,121.54,121.52,0.05591473]
[1741702633744,65.7,121.54,121.51,0.33211]
[1741702634246,27.01295838,121.52,121.46,8.2354]
[1741702634544,27.01295838,121.52,121.43,4.1851]
[1741702634947,0.06018686,121.49,121.43,4.1851]
[1741702635253,0.06018686,121.49,121.41,35.29555838]
[1741702635254,73.99358686,121.49,121.44,8.2362]
[1741702635453,65.76018686,121.49,121.41,3.9902]
[1741702635654,65.7,121.49,121.41,3.9902]
[1741702635853,0.05777822,121.46,121.45,8.2361]
[1741702636150,0.05777822,121.46,121.4,27.01295838]
[1741702636351,0.05777822,121.46,121.39,3.9957]
[1741702636846,0.05777822,121.46,121.45,8.2361]
[1741702637254,7.822e-05,121.46,121.41,27.01295838]
[1741702637453,7.822e-05,121.46,121.45,8.2361]
[1741702638341,7.822e-05,121.46,121.45,37.72905838]
[1741702638753,65.7,121.55,121.45,29.49295838]
[1741702639052,65.7,121.55,121.44,27.01295838]
[1741702639251,35.49075838,121.58,121.47,27.01295838]
[1741702639450,35.49075838,121.58,121.48,4.0889]
[1741702639650,27.01295838,121.56,121.48,4.0889]
[1741702639951,0.05785873,121.54,121.52,0.05546129]
[1741702640348,27.07081711,121.54,121.52,0.05546129]
[1741702640655,27.07081711,121.54,121.44,4.0889]
[1741702641047,8.2313,121.53,121.44,4.0889]
[1741702641244,27.01295838,121.54,121.44,4.0889]
[1741702641951,0.05395317,121.5,121.44,4.0889]
[1741702642149,0.05395317,121.5,121.45,27.01295838]
[1741702642455,5.317e-05,121.5,121.49,8.2334]
[1741702643048,5.317e-05,121.5,121.49,37.70635838]
[1741702643250,65.66,121.61,121.58,8.2273]
[1741702643450,35.16895838,121.64,121.52,27.01295838]
[1741702643758,69.75287187,121.66,121.64,8.2228]
[1741702643951,69.75287187,121.66,121.56,92.67295838]
[1741702644354,42.73991349,121.66,121.57,1.49972255]
[1741702644558,0.05280366,121.62,121.6,0.05201075]
[1741702644959,42.73991349,121.66,121.61,65.64]
[1741702646054,0.06193163,121.65,121.61,65.64]
[1741702646255,0.06193163,121.65,121.6,0.05201075]
[1741702648756,0.06193163,121.65,121.6,27.06496913]
[1741702648962,8.28453163,121.65,121.6,0.05201075]
[1741702649164,0.06193163,121.65,121.6,0.05201075]
[1741702649854,27.01295838,121.64,121.6,0.05201075]
[1741702650059,0.06193163,121.65,121.6,0.05201075]
[1741702650364,27.01295838,121.64,121.6,0.05201075]
[1741702650563,43.20035838,121.64,121.6,0.05201075]
[1741702650758,7.9636,121.64,121.6,0.05201075]
[1741702651364,34.97655838,121.64,121.6,0.05201075]
[1741702651558,43.20005838,121.64,121.6,0.05201075]
[1741702651763,7.9636,121.64,121.6,0.05201075]
[1741702652152,34.97655838,121.64,121.6,0.05201075]
[1741702652364,27.01295838,121.62,121.6,0.05201075]
[1741702652564,8.227,121.59,121.52,4.3636]
[1741702652765,27.01295838,121.6,121.52,8.2311]
[1741702652965,4.3543,121.61,121.5,65.54]
[1741702653168,4.3543,121.61,121.5,92.55295838]
[1741702653760,0.05748012,121.57,121.54,0.05487763]
[1741702654660,27.01295838,121.55,121.44,218.01295838]
[1741702654859,27.01295838,121.55,121.45,78.2506]
[1741702655060,27.01295838,121.55,121.45,8.45]
[1741702655267,27.01295838,121.53,121.45,4.2756]
[1741702655563,27.01295838,121.53,121.47,8.2343]
[1741702655766,0.0578972,121.51,121.43,4.2756]
[1741702655962,0.0578972,121.51,121.45,8.2357]
[1741702656161,27.01295838,121.51,121.4,35.49585838]
[1741702656362,0.05651932,121.49,121.4,35.49585838]
[1741702656753,27.01295838,121.51,121.4,27.01295838]
[1741702656959,0.05974759,121.46,121.4,27.01295838]
[1741702657466,0.05974759,121.46,121.42,27.01295838]
[1741702658166,0.05974759,121.46,121.45,8.2361]
[1741702658364,4.1631,121.54,121.45,65.52]
[1741702658557,35.24115838,121.57,121.46,27.01295838]
[1741702658760,27.01295838,121.57,121.46,31.24505838]
[1741702658959,27.01295838,121.55,121.46,4.2321]
[1741702659165,27.01295838,121.53,121.46,4.2321]
[1741702659359,28.65837179,121.55,121.46,4.2321]
[1741702659661,0.05800749,121.51,121.5,8.2327]
[1741702660067,1.64541341,121.55,121.46,69.7321]
[1741702660268,0.05929878,121.52,121.49,0.05304371]
[1741702660970,0.05929878,121.52,121.51,8.232]
[1741702661667,0.05929878,121.52,121.49,0.05304371]
[1741702662170,27.01295838,121.51,121.49,0.05304371]
[1741702662566,0.05929878,121.52,121.49,0.05304371]
[1741702662770,8.41879878,121.52,121.49,0.05304371]
[1741702662968,16.65049878,121.52,121.49,0.05304371]
[1741702663174,8.41879878,121.52,121.5,8.2322]
[1741702663376,8.41879878,121.52,121.49,0.05304371]
[1741702664382,0.05929878,121.52,121.49,0.05304371]
[1741702664669,0.05929878,121.52,121.5,8.2324]
[1741702664868,0.05929878,121.52,121.49,0.05304371]
[1741702665468,27.07225716,121.52,121.49,0.05304371]
[1741702666474,0.05929878,121.52,121.49,0.05304371]
[1741702667673,8.2324,121.51,121.49,0.05304371]
[1741702667873,27.01295838,121.51,121.41,69.7514]
[1741702668076,4.3329,121.5,121.41,69.7514]
[1741702668277,8.2345,121.48,121.41,69.7514]
[1741702668477,4.3329,121.5,121.41,4.3114]
[1741702668671,8.2344,121.48,121.41,69.7514]
[1741702669181,4.3329,121.5,121.41,69.7514]
[1741702669182,0.06122417,121.46,121.41,69.7514]
[1741702669680,0.06122417,121.46,121.42,27.01295838]
[1741702670377,3.9837,121.54,121.44,27.01295838]
[1741702670577,27.01295838,121.51,121.41,73.8242]
[1741702670774,27.01295838,121.51,121.44,8.2364]
[1741702670970,8.2344,121.48,121.41,73.8242]
[1741702671167,27.01295838,121.51,121.46,8.2352]
[1741702671368,8.2338,121.49,121.46,8.2352]
[1741702671567,0.05355672,121.5,121.47,0.06075386]
[1741702671770,27.01295838,121.51,121.41,73.8242]
[1741702671981,0.05557853,121.5,121.47,0.05879073]
[1741702672172,27.01295838,121.51,121.47,0.05879073]
[1741702672372,0.05491582,121.5,121.47,0.05879073]
[1741702672570,8.2341,121.48,121.47,0.05879073]
[1741702672880,0.05491582,121.5,121.44,8.2365]
[1741702672881,27.01295838,121.49,121.44,8.2365]
[1741702673179,65.4,121.51,121.41,73.8242]
[1741702673180,92.41295838,121.51,121.41,73.8242]
[1741702673380,92.41295838,121.51,121.45,8.2356]
[1741702673583,8.2348,121.47,121.41,73.8242]
[1741702673778,0.05501797,121.45,121.41,73.8242]
[1741702674173,3.9837,121.54,121.42,27.01295838]
[1741702674381,3.9837,121.54,121.41,65.38]
[1741702674575,8.2332,121.5,121.42,31.26965838]
[1741702674776,3.9837,121.54,121.49,8.2331]
[1741702675073,3.9837,121.54,121.44,27.01295838]
[1741702675276,12.2141,121.54,121.44,27.01295838]
[1741702675479,0.05784612,121.5,121.48,0.05812302]
[1741702677981,0.05784612,121.5,121.49,8.2334]
[1741702679084,0.05784612,121.5,121.48,0.05812302]
[1741702679978,8.29104612,121.5,121.48,0.05812302]
[1741702680186,0.05784612,121.5,121.48,0.05812302]
[1741702680581,8.2334,121.49,121.48,0.05812302]
[1741702680781,0.05784612,121.5,121.42,4.2567]
[1741702680984,27.01295838,121.51,121.42,4.2567]
[1741702681187,27.01295838,121.49,121.39,336.8]
[1741702681384,4.2218,121.48,121.38,27.01295838]
[1741702681982,57.25599341,121.55,121.46,27.01295838]
[1741702682178,55.61058,121.55,121.48,27.01295838]
[1741702682375,55.61058,121.55,121.47,12.7192]
[1741702682979,55.61058,121.55,121.48,27.01295838]
[1741702683178,42.73991349,121.62,121.52,27.01295838]
[1741702683579,42.73991349,121.62,121.51,65.3]
[1741702683580,42.73991349,121.62,121.59,8.2262]
[1741702683780,42.73991349,121.62,121.56,92.29295838]
[1741702683982,42.73991349,121.62,121.58,27.01295838]
[1741702684182,42.73991349,121.62,121.61,8.2253]
[1741702684499,211.48777528,121.63,121.6,27.01295838]
[1741702684500,147.55381675,121.63,121.6,27.01295838]
[1741702684781,147.61543778,121.63,121.6,0.06293348]
[1741702686282,0.06162103,121.63,121.6,0.06293348]
[1741702687784,0.06162103,121.63,121.61,27.01295838]
[1741702687785,2.103e-05,121.63,121.61,27.01295838]
[1741702688089,2.103e-05,121.63,121.62,8.2246]
[1741702688588,84.64319061,121.73,121.62,2.46]
[1741702688788,84.64319061,121.73,121.64,27.01295838]
[1741702688988,84.64319061,121.73,121.63,65.2]
[1741702689591,4.064,121.74,121.64,27.01295838]
[1741702689792,0.06222847,121.69,121.66,0.06303056]
[1741702689994,0.06222847,121.69,121.64,27.01295838]
[1741702690192,0.06222847,121.69,121.66,0.05298847]
[1741702690887,2.847e-05,121.69,121.66,27.06594685]
[1741702691084,2.847e-05,121.69,121.68,27.01295838]
[1741702691288,2.847e-05,121.69,121.68,100.39345838]
[1741702691482,2.847e-05,121.69,121.68,73.3805]
[1741702691683,2.847e-05,121.69,121.68,100.39345838]
[1741702691891,27.01295838,121.82,121.68,121.64591676]
[1741702692091,13.0395,121.82,121.72,27.01295838]
[1741702692287,13.0395,121.82,121.73,65.14]
[1741702692784,8.7671,121.82,121.74,27.01295838]
[1741702692987,35.78005838,121.82,121.73,65.14]
[1741702693193,0.05727749,121.79,121.76,0.05496488]
[1741702693690,27.01295838,121.78,121.68,92.13295838]
[1741702693895,27.01295838,121.76,121.68,65.12]
[1741702694097,27.01295838,121.74,121.64,92.13295838]
[1741702694290,27.01295838,121.74,121.64,65.12]
[1741702694599,65.12,121.77,121.66,27.01295838]
[1741702694989,0.05658696,121.73,121.7,0.05372522]
[1741702696392,4.45328696,121.73,121.64,65.06]
[1741702696600,27.01295838,121.72,121.64,65.06]
[1741702696789,4.3967,121.73,121.64,92.07295838]
[1741702696989,4.3967,121.73,121.64,65.06]
[1741702697384,4.3967,121.73,121.66,27.01295838]
[1741702697598,31.11865838,121.78,121.66,27.01295838]
[1741702697800,0.06088321,121.7,121.69,8.2194]
[1741702697989,0.05631071,121.73,121.71,0.05325929]
[1741702698196,4.2819,121.77,121.66,27.01295838]
[1741702698391,0.06205116,121.73,121.71,0.06149676]
[1741702699299,5.116e-05,121.73,121.72,8.2176]
[1741702700398,5.116e-05,121.73,121.71,8.27949676]
[1741702700695,5.116e-05,121.73,121.71,0.06149676]
[1741702701493,5.116e-05,121.73,121.72,8.2178]
[1741702702001,5.116e-05,121.73,121.71,8.27969676]
[1741702702193,5.116e-05,121.73,121.71,0.06149676]
[1741702702994,8.21735116,121.73,121.71,0.06149676]
[1741702703300,5.116e-05,121.73,121.71,0.06149676]
[1741702703694,5.116e-05,121.73,121.69,8.2195]
[1741702703695,27.01295838,121.72,121.62,0.1007]
[1741702703895,8.2213,121.67,121.58,64.96]
[1741702704193,27.01295838,121.68,121.58,64.96]
[1741702704403,8.0996,121.69,121.58,64.96]
[1741702704599,27.01295838,121.74,121.61,27.01295838]
[1741702704790,27.01295838,121.72,121.59,27.01295838]
[1741702704995,8.2211,121.68,121.66,0.05397898]
[1741702705300,0.0617989,121.69,121.66,0.05397898]
[1741702705690,0.0617989,121.69,121.66,8.27557898]
[1741702705890,0.0617989,121.69,121.66,0.05397898]
[1741702706296,8.221,121.68,121.66,0.05397898]
[1741702706601,0.0617989,121.69,121.66,0.05397898]
[1741702706806,0.0617989,121.69,121.68,8.2205]
[1741702708403,0.0617989,121.69,121.66,0.05397898]
[1741702709297,8.2212,121.67,121.66,0.05397898]
[1741702709494,0.0617989,121.69,121.66,0.05397898]
[1741702710795,8.2212,121.67,121.66,0.05397898]
[1741702711007,4.0793,121.68,121.61,64.9]
[1741702711201,4.0793,121.68,121.58,191.0]
[1741702711202,8.295,121.68,121.57,27.11365838]
[1741702711400,8.295,121.68,121.67,8.2212]
[1741702711602,4.0793,121.68,121.67,8.2212]
[1741702711804,4.0793,121.68,121.59,27.01295838]
[1741702712306,3.1e-05,121.65,121.62,0.05311218]
[1741702712499,8.2189,121.71,121.61,27.01295838]
[1741702712704,4.2157,121.72,121.61,27.01295838]
[1741702712905,27.01295838,121.69,121.57,27.11365838]
[1741702713105,8.2223,121.66,121.62,8.2241]
[1741702713305,27.01295838,121.69,121.58,64.86]
[1741702713602,0.05860633,121.65,121.63,0.05394288]
[1741702713808,4.1562,121.66,121.56,271.16]
[1741702714409,4.1562,121.66,121.57,27.01295838]
[1741702715111,8.77e-06,121.63,121.6,0.05779749]
[1741702715305,8.2194,121.7,121.6,64.84]
[1741702715708,4.3236,121.71,121.6,64.84]
[1741702715904,27.01295838,121.69,121.6,64.84]
[1741702716212,0.06136569,121.66,121.63,0.05332579]
[1741702716512,0.06136569,121.66,121.6,64.84]
[1741702716810,0.06136569,121.66,121.63,0.05245016]
[1741702718913,8.28336569,121.66,121.63,8.27615016]
[1741702719112,0.06136569,121.66,121.63,0.05245016]
[1741702719407,0.06136569,121.66,121.65,8.2226]
[1741702720012,0.06136569,121.66,121.63,0.05245016]
[1741702720713,8.2232,121.64,121.61,8.225]
[1741702720919,4.1803,121.65,121.61,8.225]
[1741702721210,4.1803,121.65,121.63,8.2236]
[1741702721409,4.1803,121.65,121.56,335.96]
[1741702721613,8.2236,121.64,121.6,8.2254]
[1741702722005,0.05531421,121.63,121.61,0.05657567]
[1741702722213,0.05531421,121.63,121.62,8.2246]
[1741702722506,4.3659,121.7,121.61,64.83657567]
[1741702722715,8.2204,121.69,121.65,8.2221]
[1741702722914,4.3659,121.7,121.65,8.2221]
[1741702723108,4.3659,121.7,121.61,64.78]
[1741702723714,27.06774157,121.67,121.64,0.06107197]
[1741702723916,27.06774157,121.67,121.56,335.92]
[1741702724313,27.01295838,121.67,121.56,335.92]
[1741702724613,8.2213,121.67,121.57,27.01295838]
[1741702724807,64.76,121.68,121.57,27.01295838]
[1741702725013,0.05188451,121.63,121.61,0.05988401]
[1741702725207,8.2209,121.68,121.61,64.74]
[1741702725406,7.74e-05,121.63,121.61,94.26668803]
[1741702725612,4.3659,121.7,121.61,91.80668803]
[1741702725812,4.3659,121.7,121.61,91.75295838]
[1741702726012,4.3236,121.71,121.63,27.01295838]
[1741702726317,117.29326068,121.77,121.67,27.01295838]
[1741702726517,125.70926068,121.77,121.68,64.74]
[1741702726818,0.0594985,121.73,121.71,0.06281499]
[1741702727318,0.0594985,121.73,121.72,8.2178]
[1741702727506,0.0594985,121.73,121.71,0.06281499]
[1741702728816,0.0594985,121.73,121.71,8.28111499]
[1741702729112,0.0594985,121.73,121.71,0.06281499]
[1741702729312,9.85e-05,121.73,121.72,8.2178]
[1741702730614,9.85e-05,121.73,121.71,0.06281499]
[1741702732319,9.85e-05,121.73,121.72,8.2178]
[1741702732916,9.85e-05,121.73,121.72,10.6778]
[1741702733414,9.85e-05,121.73,121.72,8.2178]
[1741702734018,9.85e-05,121.73,121.72,10.6778]
[1741702734221,9.85e-05,121.73,121.72,8.2178]
[1741702734719,9.85e-05,121.73,121.71,0.06281499]
[1741702735416,9.85e-05,121.73,121.72,8.2178]
[1741702735611,9.85e-05,121.73,121.71,0.06281499]
[1741702735820,9.85e-05,121.73,121.72,8.2178]
[1741702738522,9.85e-05,121.73,121.71,8.28121499]
[1741702738725,9.85e-05,121.73,121.71,0.06281499]
[1741702739123,9.85e-05,121.73,121.71,8.28081499]
[1741702739819,9.85e-05,121.73,121.72,8.2178]
[1741702740020,9.85e-05,121.73,121.71,0.06281499]
[1741702741125,9.85e-05,121.73,121.65,462.16]
[1741702741325,8.0702,121.74,121.65,271.16]
[1741702741525,8.2204,121.69,121.64,64.52]
[1741702741729,27.01295838,121.71,121.62,64.52]
[1741702741927,4.1969,121.72,121.68,8.2199]
[1741702742223,0.05515214,121.68,121.65,0.06249213]
[1741702742424,27.01295838,121.71,121.62,64.52]
[1741702742719,0.05740614,121.68,121.65,0.05411937]
[1741702743131,0.05740614,121.68,121.67,8.2212]
[1741702743323,0.05740614,121.68,121.65,0.05411937]
[1741702743524,6.14e-06,121.68,121.65,0.05411937]
[1741702743726,6.14e-06,121.68,121.67,35.23415838]
[1741702744023,6.14e-06,121.68,121.67,99.73415838]
[1741702744224,6.14e-06,121.68,121.67,102.19415838]
[1741702744424,6.14e-06,121.68,121.67,99.73415838]
[1741702744922,6.14e-06,121.68,121.67,72.7212]
[1741702746120,8.4877,121.78,121.76,8.2147]